[Event "Live Chess"]
[Site "Chess.com"]
[Date "2024.06.01"]
[Round "-"]
[White "Eva3337"]
[Black "viktorskliarov"]
[Result "0-1"]
[WhiteElo "1127"]
[BlackElo "2638"]
[TimeControl "300"]
[EndTime "9:24:52 PDT"]
[Termination "viktorskliarov won by resignation"]

1. e4 {[%clk 0:04:55.2]} 1... c5 {[%clk 0:04:58.8]} 2. Nf3 {[%clk 0:04:53.5]}
2... Nc6 {[%clk 0:04:58.2]} 3. c3 {[%clk 0:04:52.4]} 3... Nf6 {[%clk 0:04:57]}
4. Bd3 {[%clk 0:04:48.4]} 4... d5 {[%clk 0:04:55.3]} 5. e5 {[%clk 0:04:45.3]}
5... Nd7 {[%clk 0:04:54.3]} 6. Qe2 {[%clk 0:04:37.7]} 6... e6 {[%clk 0:04:45.2]}
7. O-O {[%clk 0:04:36.2]} 7... Qc7 {[%clk 0:04:41.8]} 8. Re1 {[%clk 0:04:29.7]}
8... c4 {[%clk 0:04:40.6]} 9. Bc2 {[%clk 0:04:26.1]} 9... Nc5 {[%clk 0:04:38.5]}
10. b3 {[%clk 0:04:23.2]} 10... b5 {[%clk 0:04:24.5]} 11. Nd4 {[%clk 0:04:14.2]}
11... Nxd4 {[%clk 0:04:02.9]} 12. cxd4 {[%clk 0:04:10.9]} 12... Nd7 {[%clk
0:03:47.4]} 13. bxc4 {[%clk 0:03:56.2]} 13... dxc4 {[%clk 0:03:41.2]} 14. Nc3
{[%clk 0:03:54.5]} 14... a6 {[%clk 0:03:31.9]} 15. a4 {[%clk 0:03:52.1]} 15...
b4 {[%clk 0:03:28.8]} 16. Nd1 {[%clk 0:03:45.5]} 16... Bb7 {[%clk 0:03:24.9]}
17. Rb1 {[%clk 0:03:35.4]} 17... Be7 {[%clk 0:03:18.5]} 18. Ne3 {[%clk 0:03:17]}
18... Rc8 {[%clk 0:03:13.9]} 19. f3 {[%clk 0:03:04.2]} 19... Nb6 {[%clk
0:03:00.6]} 20. Bb2 {[%clk 0:02:30.9]} 20... Nd5 {[%clk 0:02:50.2]} 21. Nxd5
{[%clk 0:02:27.5]} 21... Bxd5 {[%clk 0:02:48.3]} 22. Be4 {[%clk 0:02:26.8]}
22... Qc6 {[%clk 0:02:42.2]} 23. Bxd5 {[%clk 0:02:24.6]} 23... Qxd5 {[%clk
0:02:39.4]} 24. Rec1 {[%clk 0:02:15.8]} 24... O-O {[%clk 0:02:33.2]} 25. d3
{[%clk 0:02:13.8]} 25... c3 {[%clk 0:02:30]} 26. Ba1 {[%clk 0:02:10.5]} 26...
Qxd4+ {[%clk 0:02:20.7]} 27. Kh1 {[%clk 0:02:04.9]} 27... Rfd8 {[%clk 0:02:19]}
28. Rb3 {[%clk 0:01:42.5]} 28... Qxd3 {[%clk 0:02:13.8]} 29. Qxd3 {[%clk
0:01:32.3]} 29... Rxd3 {[%clk 0:02:11.3]} 30. Bxc3 {[%clk 0:01:21.7]} 30...
Rdxc3 {[%clk 0:02:07.8]} 31. Rbxc3 {[%clk 0:01:20.6]} 31... bxc3 {[%clk
0:02:06.8]} 0-1

[Event "Live Chess"]
[Site "Chess.com"]
[Date "2024.06.01"]
[Round "-"]
[White "Frankie_Badacsonyi"]
[Black "Bazzza132"]
[Result "1-0"]
[WhiteElo "2455"]
[BlackElo "1711"]
[TimeControl "300"]
[EndTime "9:24:56 PDT"]
[Termination "Frankie_Badacsonyi won by resignation"]

1. Nf3 {[%clk 0:04:58.9]} 1... Nf6 {[%clk 0:04:58.5]} 2. e3 {[%clk 0:04:58.1]}
2... g6 {[%clk 0:04:57.1]} 3. b3 {[%clk 0:04:55.8]} 3... Bg7 {[%clk 0:04:55.1]}
4. Bb2 {[%clk 0:04:55.4]} 4... d5 {[%clk 0:04:53]} 5. Be2 {[%clk 0:04:54.6]}
5... O-O {[%clk 0:04:50.1]} 6. O-O {[%clk 0:04:53.9]} 6... c6 {[%clk 0:04:47.5]}
7. c4 {[%clk 0:04:52.2]} 7... Bg4 {[%clk 0:04:40.8]} 8. h3 {[%clk 0:04:50.4]}
8... Bxf3 {[%clk 0:04:36.5]} 9. Bxf3 {[%clk 0:04:50.3]} 9... e6 {[%clk
0:04:34.1]} 10. Nc3 {[%clk 0:04:49.2]} 10... Nbd7 {[%clk 0:04:31.2]} 11. d4
{[%clk 0:04:44.1]} 11... Qc7 {[%clk 0:04:17]} 12. Rc1 {[%clk 0:04:41.9]} 12...
dxc4 {[%clk 0:03:59.5]} 13. bxc4 {[%clk 0:04:40.4]} 13... Nb6 {[%clk 0:03:55]}
14. Qb3 {[%clk 0:04:29]} 14... Nfd7 {[%clk 0:03:43.6]} 15. Ba3 {[%clk
0:04:24.8]} 15... c5 {[%clk 0:03:07.7]} 16. Nb5 {[%clk 0:03:58.1]} 16... Qc8
{[%clk 0:02:54.8]} 17. Nd6 {[%clk 0:03:09]} 17... Qc7 {[%clk 0:02:49.9]} 18.
dxc5 {[%clk 0:03:07.5]} 18... Nxc5 {[%clk 0:02:37.1]} 19. Bxc5 {[%clk
0:03:06.6]} 19... Qxc5 {[%clk 0:02:37]} 20. Nxb7 {[%clk 0:03:05.7]} 20... Qc7
{[%clk 0:02:30.2]} 21. c5 {[%clk 0:03:00]} 21... Nd5 {[%clk 0:02:26]} 22. Bxd5
{[%clk 0:02:53.3]} 22... exd5 {[%clk 0:02:24.7]} 23. Qxd5 {[%clk 0:02:51.6]}
23... Rab8 {[%clk 0:02:15.2]} 24. c6 {[%clk 0:02:50.2]} 24... Rbc8 {[%clk
0:01:50.2]} 25. Rfd1 {[%clk 0:02:47.8]} 25... Qb6 {[%clk 0:01:45.9]} 26. Rc2
{[%clk 0:02:06.9]} 26... Rc7 {[%clk 0:01:30.8]} 27. a4 {[%clk 0:01:47.5]} 27...
Qb4 {[%clk 0:01:21.1]} 28. a5 {[%clk 0:01:36.6]} 28... Qa4 {[%clk 0:01:10.4]}
29. Rdc1 {[%clk 0:01:33.9]} 29... Qb4 {[%clk 0:00:59.9]} 30. Qc5 {[%clk
0:01:25.2]} 30... Qe4 {[%clk 0:00:52.6]} 31. Nd6 {[%clk 0:01:19.4]} 31... Qe6
{[%clk 0:00:48.5]} 32. Nb5 {[%clk 0:01:17.7]} 32... Rcc8 {[%clk 0:00:42.4]} 33.
c7 {[%clk 0:01:15.4]} 33... a6 {[%clk 0:00:34.1]} 34. Na7 {[%clk 0:01:11.8]}
34... Ra8 {[%clk 0:00:31.5]} 35. c8=Q {[%clk 0:01:00.6]} 35... Rfxc8 {[%clk
0:00:30.1]} 36. Nxc8 {[%clk 0:00:59.6]} 36... Bf8 {[%clk 0:00:24.5]} 37. Qc6
{[%clk 0:00:56.9]} 37... Qf6 {[%clk 0:00:18.7]} 38. Qxf6 {[%clk 0:00:53.7]} 1-0

[Event "Live Chess"]
[Site "Chess.com"]
[Date "2024.06.01"]
[Round "-"]
[White "Demyan7777"]
[Black "mrsmarple1968"]
[Result "1/2-1/2"]
[WhiteElo "1680"]
[BlackElo "1803"]
[TimeControl "300"]
[EndTime "9:25:00 PDT"]
[Termination "Game drawn by repetition"]

1. e4 {[%clk 0:04:56.9]} 1... e5 {[%clk 0:04:56]} 2. Nf3 {[%clk 0:04:55.8]} 2...
Nc6 {[%clk 0:04:53.8]} 3. Nc3 {[%clk 0:04:53.6]} 3... Nf6 {[%clk 0:04:50.9]} 4.
d4 {[%clk 0:04:52.5]} 4... exd4 {[%clk 0:04:45.6]} 5. Nxd4 {[%clk 0:04:51.9]}
5... d6 {[%clk 0:04:44.4]} 6. Be2 {[%clk 0:04:42.8]} 6... Bd7 {[%clk 0:04:42.2]}
7. Be3 {[%clk 0:04:41]} 7... Be7 {[%clk 0:04:40.4]} 8. f4 {[%clk 0:04:38.3]}
8... Nxd4 {[%clk 0:04:26.2]} 9. Bxd4 {[%clk 0:04:35.6]} 9... Bc6 {[%clk
0:04:24.9]} 10. Bf3 {[%clk 0:04:34.2]} 10... O-O {[%clk 0:04:18.1]} 11. O-O
{[%clk 0:04:30.5]} 11... Re8 {[%clk 0:04:13.2]} 12. Re1 {[%clk 0:04:26.2]} 12...
a6 {[%clk 0:04:04.1]} 13. Qd2 {[%clk 0:04:24.1]} 13... b5 {[%clk 0:03:55.7]} 14.
a3 {[%clk 0:04:21.8]} 14... Rb8 {[%clk 0:03:52.1]} 15. Rad1 {[%clk 0:04:19.6]}
15... a5 {[%clk 0:03:47.6]} 16. Qf2 {[%clk 0:03:52.7]} 16... b4 {[%clk
0:03:26.2]} 17. axb4 {[%clk 0:03:47.3]} 17... axb4 {[%clk 0:03:24.8]} 18. Nd5
{[%clk 0:03:46.2]} 18... Nxd5 {[%clk 0:02:49.6]} 19. exd5 {[%clk 0:03:44.7]}
19... Bd7 {[%clk 0:02:46.5]} 20. c4 {[%clk 0:03:33.1]} 20... Bf8 {[%clk
0:02:37.4]} 21. Rxe8 {[%clk 0:03:27.8]} 21... Qxe8 {[%clk 0:02:34.5]} 22. Re1
{[%clk 0:03:27.1]} 22... Qc8 {[%clk 0:02:26.4]} 23. b3 {[%clk 0:03:24.8]} 23...
c5 {[%clk 0:02:10.7]} 24. dxc6 {[%clk 0:03:19.1]} 24... Bxc6 {[%clk 0:02:08.6]}
25. Bxc6 {[%clk 0:03:13.8]} 25... Qxc6 {[%clk 0:02:06.9]} 26. Qg3 {[%clk
0:03:11.9]} 26... d5 {[%clk 0:01:58]} 27. cxd5 {[%clk 0:03:04.6]} 27... Qxd5
{[%clk 0:01:56.6]} 28. Be5 {[%clk 0:03:01.4]} 28... Rc8 {[%clk 0:01:42.6]} 29.
h4 {[%clk 0:02:58.2]} 29... Qc6 {[%clk 0:01:23]} 30. Kh2 {[%clk 0:02:37.2]}
30... f6 {[%clk 0:01:16.3]} 31. Bd4 {[%clk 0:02:35.5]} 31... Kh8 {[%clk
0:01:11.9]} 32. Qe3 {[%clk 0:02:30.2]} 32... Qd5 {[%clk 0:00:59.4]} 33. Re2
{[%clk 0:02:17.5]} 33... Rd8 {[%clk 0:00:55.1]} 34. Bb2 {[%clk 0:02:14.2]} 34...
Qc5 {[%clk 0:00:48.9]} 35. Qf3 {[%clk 0:02:05.6]} 35... h6 {[%clk 0:00:45.5]}
36. Qe4 {[%clk 0:01:55.1]} 36... Qh5 {[%clk 0:00:41.4]} 37. g3 {[%clk
0:01:49.5]} 37... Qg4 {[%clk 0:00:36.7]} 38. Rc2 {[%clk 0:01:42.3]} 38... Qd7
{[%clk 0:00:34.4]} 39. Qg6 {[%clk 0:01:31.6]} 39... Qe8 {[%clk 0:00:31.7]} 40.
Qf5 {[%clk 0:01:19.9]} 40... Qd7 {[%clk 0:00:30.5]} 41. Qg6 {[%clk 0:01:18.6]}
41... Qe8 {[%clk 0:00:29.4]} 42. Qf5 {[%clk 0:01:17.6]} 42... Qd7 {[%clk
0:00:28.5]} 43. Qg6 {[%clk 0:01:16.9]} 1/2-1/2

[Event "Live Chess"]
[Site "Chess.com"]
[Date "2024.06.01"]
[Round "-"]
[White "Mangoalo"]
[Black "Grieve72"]
[Result "0-1"]
[WhiteElo "989"]
[BlackElo "2651"]
[TimeControl "300"]
[EndTime "9:25:00 PDT"]
[Termination "Grieve72 won by checkmate"]

1. e4 {[%clk 0:04:57.5]} 1... g6 {[%clk 0:04:59.9]} 2. Nf3 {[%clk 0:04:54.1]}
2... Bg7 {[%clk 0:04:59.5]} 3. d4 {[%clk 0:04:53.8]} 3... d6 {[%clk 0:04:56.6]}
4. c4 {[%clk 0:04:53.3]} 4... Nf6 {[%clk 0:04:55.5]} 5. Nc3 {[%clk 0:04:51.1]}
5... O-O {[%clk 0:04:55]} 6. Bg5 {[%clk 0:04:48.7]} 6... c5 {[%clk 0:04:52.6]}
7. d5 {[%clk 0:04:47.5]} 7... Na6 {[%clk 0:04:50.9]} 8. Bxf6 {[%clk 0:04:45.9]}
8... Bxf6 {[%clk 0:04:50.1]} 9. Bd3 {[%clk 0:04:45.1]} 9... Nc7 {[%clk
0:04:49.1]} 10. O-O {[%clk 0:04:44.1]} 10... a6 {[%clk 0:04:48.4]} 11. a3 {[%clk
0:04:42.3]} 11... Rb8 {[%clk 0:04:46.5]} 12. b4 {[%clk 0:04:40.5]} 12... b5
{[%clk 0:04:44.7]} 13. cxb5 {[%clk 0:04:39.1]} 13... Bxc3 {[%clk 0:04:43.7]} 14.
bxa6 {[%clk 0:04:37.6]} 14... Bxa1 {[%clk 0:04:42.8]} 15. Qxa1 {[%clk
0:04:36.4]} 15... Bxa6 {[%clk 0:04:41.9]} 16. bxc5 {[%clk 0:04:35.1]} 16... Bxd3
{[%clk 0:04:40.9]} 17. Rd1 {[%clk 0:04:30.7]} 17... Bxe4 {[%clk 0:04:40.3]} 18.
Nd2 {[%clk 0:04:27.9]} 18... Bxd5 {[%clk 0:04:39.4]} 19. cxd6 {[%clk 0:04:26.6]}
19... Qxd6 {[%clk 0:04:39.3]} 20. Nf3 {[%clk 0:04:21.4]} 20... Qf4 {[%clk
0:04:37.6]} 21. Rd4 {[%clk 0:04:11]} 21... Qf5 {[%clk 0:04:36]} 22. Rh4 {[%clk
0:04:08]} 22... Rb1+ {[%clk 0:04:35.5]} 23. Qxb1 {[%clk 0:04:05.8]} 23... Qxb1+
{[%clk 0:04:35.4]} 24. Ne1 {[%clk 0:04:04.1]} 24... Qxe1# {[%clk 0:04:35.3]} 0-1

[Event "Live Chess"]
[Site "Chess.com"]
[Date "2024.06.01"]
[Round "-"]
[White "LL220284LL"]
[Black "Pizzaman313"]
[Result "1-0"]
[WhiteElo "2579"]
[BlackElo "1193"]
[TimeControl "300"]
[EndTime "9:25:03 PDT"]
[Termination "LL220284LL won by checkmate"]

1. b4 {[%clk 0:04:58.6]} 1... b5 {[%clk 0:04:55.5]} 2. Bb2 {[%clk 0:04:57.5]}
2... Bb7 {[%clk 0:04:55.1]} 3. e3 {[%clk 0:04:56.1]} 3... Nf6 {[%clk 0:04:48.4]}
4. Nf3 {[%clk 0:04:54.2]} 4... a6 {[%clk 0:04:43.4]} 5. a3 {[%clk 0:04:50.2]}
5... g6 {[%clk 0:04:33.5]} 6. Be2 {[%clk 0:04:48.7]} 6... Bg7 {[%clk 0:04:33]}
7. O-O {[%clk 0:04:47.3]} 7... O-O {[%clk 0:04:32.6]} 8. d3 {[%clk 0:04:45.9]}
8... d6 {[%clk 0:04:31.6]} 9. Nbd2 {[%clk 0:04:40.9]} 9... e5 {[%clk 0:04:23.7]}
10. c4 {[%clk 0:04:36.5]} 10... Nbd7 {[%clk 0:04:09.9]} 11. Rc1 {[%clk
0:04:33.3]} 11... d5 {[%clk 0:03:43.1]} 12. cxd5 {[%clk 0:04:31]} 12... Nxd5
{[%clk 0:03:36.6]} 13. Ne4 {[%clk 0:04:19.9]} 13... f5 {[%clk 0:03:24]} 14. Nc5
{[%clk 0:04:17.8]} 14... Nxc5 {[%clk 0:03:21.4]} 15. Rxc5 {[%clk 0:04:17.7]}
15... e4 {[%clk 0:02:52.4]} 16. Nd4 {[%clk 0:03:56.7]} 16... Re8 {[%clk
0:01:32.8]} 17. dxe4 {[%clk 0:03:53.7]} 17... Rxe4 {[%clk 0:01:24.3]} 18. Bf3
{[%clk 0:03:52.5]} 18... Bf8 {[%clk 0:01:00.9]} 19. Rc2 {[%clk 0:03:45.6]} 19...
Re8 {[%clk 0:00:47.5]} 20. Rd2 {[%clk 0:03:39.1]} 20... Bg7 {[%clk 0:00:37.2]}
21. Qa1 {[%clk 0:03:34]} 21... Bxd4 {[%clk 0:00:30.6]} 22. Rxd4 {[%clk
0:03:30.9]} 22... c6 {[%clk 0:00:29]} 23. Rfd1 {[%clk 0:03:27.9]} 23... Qg5
{[%clk 0:00:19.6]} 24. Rxd5 {[%clk 0:03:24.6]} 24... cxd5 {[%clk 0:00:17.6]} 25.
Rxd5 {[%clk 0:03:22.5]} 25... Bxd5 {[%clk 0:00:14.5]} 26. Bxd5+ {[%clk
0:03:22.4]} 26... Kf8 {[%clk 0:00:12.2]} 27. Bg7+ {[%clk 0:03:22]} 27... Ke7
{[%clk 0:00:10.1]} 28. Qe5+ {[%clk 0:03:21.5]} 28... Kd7 {[%clk 0:00:08.4]} 29.
Qd4 {[%clk 0:03:17.6]} 29... Kc8 {[%clk 0:00:06.6]} 30. Qc5+ {[%clk 0:03:16.3]}
30... Kb8 {[%clk 0:00:05.3]} 31. Qd6+ {[%clk 0:03:14.6]} 31... Ka7 {[%clk
0:00:03.6]} 32. Qc7# {[%clk 0:03:13.5]} 1-0

[Event "Live Chess"]
[Site "Chess.com"]
[Date "2024.06.01"]
[Round "-"]
[White "akp42"]
[Black "halfberg"]
[Result "1-0"]
[WhiteElo "1994"]
[BlackElo "1903"]
[TimeControl "300"]
[EndTime "9:25:10 PDT"]
[Termination "akp42 won by resignation"]

1. e4 {[%clk 0:04:57.5]} 1... c5 {[%clk 0:04:58.6]} 2. Nf3 {[%clk 0:04:56.1]}
2... Nc6 {[%clk 0:04:57.5]} 3. Bb5 {[%clk 0:04:54.7]} 3... Nd4 {[%clk
0:04:53.4]} 4. Nxd4 {[%clk 0:04:49.4]} 4... cxd4 {[%clk 0:04:53]} 5. O-O {[%clk
0:04:39.8]} 5... a6 {[%clk 0:04:51.9]} 6. Bd3 {[%clk 0:04:37.1]} 6... g6 {[%clk
0:04:50.5]} 7. c3 {[%clk 0:04:36]} 7... dxc3 {[%clk 0:04:48.7]} 8. bxc3 {[%clk
0:04:30.2]} 8... Bg7 {[%clk 0:04:48.2]} 9. a4 {[%clk 0:04:26.9]} 9... d6 {[%clk
0:04:46.7]} 10. a5 {[%clk 0:04:25.5]} 10... Nf6 {[%clk 0:04:44.5]} 11. Na3
{[%clk 0:04:21.1]} 11... O-O {[%clk 0:04:42.9]} 12. Nc4 {[%clk 0:04:19.7]} 12...
Be6 {[%clk 0:04:34.1]} 13. Nb6 {[%clk 0:04:17.9]} 13... Nd7 {[%clk 0:04:32]} 14.
Nxa8 {[%clk 0:04:15.5]} 14... Qxa8 {[%clk 0:04:29.7]} 15. Qe2 {[%clk 0:04:06]}
15... Nc5 {[%clk 0:04:25.5]} 16. Bc4 {[%clk 0:04:03.5]} 16... Bd7 {[%clk
0:04:16.5]} 17. Rb1 {[%clk 0:03:57.9]} 17... Bc6 {[%clk 0:04:14.7]} 18. Bd5
{[%clk 0:03:51.2]} 18... Bb5 {[%clk 0:03:56.3]} 19. c4 {[%clk 0:03:41.4]} 19...
Bc6 {[%clk 0:03:54]} 20. Bb2 {[%clk 0:03:34.9]} 20... e5 {[%clk 0:03:40]} 21.
Rfd1 {[%clk 0:03:25]} 21... Qd8 {[%clk 0:03:37.6]} 22. d4 {[%clk 0:03:23.4]}
22... exd4 {[%clk 0:03:34.8]} 23. Bxd4 {[%clk 0:03:22.3]} 23... Qxa5 {[%clk
0:03:31.2]} 24. Bxg7 {[%clk 0:03:15.2]} 24... Kxg7 {[%clk 0:03:29.7]} 25. Bxc6
{[%clk 0:03:11.4]} 25... bxc6 {[%clk 0:03:26.2]} 26. Rxd6 {[%clk 0:03:09.9]}
26... Re8 {[%clk 0:03:17.5]} 27. f3 {[%clk 0:02:54.4]} 27... Nxe4 {[%clk
0:03:03.3]} 28. Qb2+ {[%clk 0:02:40.9]} 28... Kg8 {[%clk 0:03:01.1]} 29. fxe4
{[%clk 0:02:38.7]} 29... Qc5+ {[%clk 0:02:58.2]} 30. Qd4 {[%clk 0:02:36.8]} 1-0

[Event "Live Chess"]
[Site "Chess.com"]
[Date "2024.06.01"]
[Round "-"]
[White "Tushinskiy"]
[Black "Colm_Buckley"]
[Result "1-0"]
[WhiteElo "2218"]
[BlackElo "1815"]
[TimeControl "300"]
[EndTime "9:25:31 PDT"]
[Termination "Tushinskiy won on time"]

1. d4 {[%clk 0:04:57.6]} 1... e6 {[%clk 0:04:58.6]} 2. c3 {[%clk 0:04:57.5]}
2... Nf6 {[%clk 0:04:57]} 3. Nf3 {[%clk 0:04:57.4]} 3... c5 {[%clk 0:04:56]} 4.
Bf4 {[%clk 0:04:57.3]} 4... Qb6 {[%clk 0:04:51.8]} 5. Qc1 {[%clk 0:04:55.7]}
5... cxd4 {[%clk 0:04:50]} 6. cxd4 {[%clk 0:04:55.6]} 6... Nc6 {[%clk
0:04:45.2]} 7. e3 {[%clk 0:04:54.6]} 7... Bb4+ {[%clk 0:04:40.8]} 8. Nbd2 {[%clk
0:04:52.4]} 8... O-O {[%clk 0:04:28.3]} 9. Bd3 {[%clk 0:04:50.7]} 9... Qa5
{[%clk 0:04:19.6]} 10. O-O {[%clk 0:04:49.1]} 10... Bxd2 {[%clk 0:04:13.1]} 11.
Nxd2 {[%clk 0:04:47.7]} 11... b6 {[%clk 0:04:12.5]} 12. a3 {[%clk 0:04:33.8]}
12... Bb7 {[%clk 0:04:08.4]} 13. Nc4 {[%clk 0:03:56]} 13... Qh5 {[%clk
0:03:57.4]} 14. Nd6 {[%clk 0:03:52.4]} 14... Bc8 {[%clk 0:03:42]} 15. b4 {[%clk
0:03:50.7]} 15... Nd5 {[%clk 0:03:35]} 16. Bg3 {[%clk 0:03:49.2]} 16... f5
{[%clk 0:03:30.7]} 17. Qd2 {[%clk 0:03:47.1]} 17... Nd8 {[%clk 0:03:22.5]} 18.
Rac1 {[%clk 0:03:44.6]} 18... Nf7 {[%clk 0:03:19.4]} 19. Nxf7 {[%clk 0:03:38.1]}
19... Qxf7 {[%clk 0:03:13.6]} 20. Be2 {[%clk 0:03:25.6]} 20... Bb7 {[%clk
0:03:09.9]} 21. Bf3 {[%clk 0:03:24.4]} 21... Rac8 {[%clk 0:03:07.3]} 22. Bd6
{[%clk 0:03:22.7]} 22... Rfe8 {[%clk 0:03:04.3]} 23. h3 {[%clk 0:03:21.2]} 23...
Bc6 {[%clk 0:02:57.5]} 24. Rc2 {[%clk 0:03:17.4]} 24... Ne7 {[%clk 0:02:52.4]}
25. Bxe7 {[%clk 0:03:04.8]} 25... Qxe7 {[%clk 0:02:51.1]} 26. Rfc1 {[%clk
0:03:02.8]} 26... e5 {[%clk 0:02:20.4]} 27. Bxc6 {[%clk 0:02:47.8]} 27... dxc6
{[%clk 0:02:18.1]} 28. Rxc6 {[%clk 0:02:47.7]} 28... Rxc6 {[%clk 0:02:16]} 29.
Rxc6 {[%clk 0:02:47.6]} 29... exd4 {[%clk 0:02:13.9]} 30. Qxd4 {[%clk
0:02:46.3]} 30... Rd8 {[%clk 0:02:05.1]} 31. Qc4+ {[%clk 0:02:44.7]} 31... Kf8
{[%clk 0:01:59.3]} 32. Rc8 {[%clk 0:02:41.7]} 32... g6 {[%clk 0:01:53.4]} 33. g3
{[%clk 0:02:34.4]} 33... Kg7 {[%clk 0:01:36.6]} 34. Rc7 {[%clk 0:02:31.1]} 34...
Rd7 {[%clk 0:01:35.5]} 35. Rxd7 {[%clk 0:02:30.2]} 35... Qxd7 {[%clk 0:01:34.4]}
36. Kg2 {[%clk 0:02:24.9]} 36... Qb7+ {[%clk 0:01:27.9]} 37. f3 {[%clk
0:02:22.9]} 37... b5 {[%clk 0:01:10.8]} 38. Qd4+ {[%clk 0:02:21]} 38... Kf7
{[%clk 0:01:07.8]} 39. e4 {[%clk 0:02:16.3]} 39... fxe4 {[%clk 0:01:01.7]} 40.
fxe4 {[%clk 0:02:16.2]} 40... Qc7 {[%clk 0:00:57.2]} 41. Qd5+ {[%clk 0:02:09.3]}
41... Kg7 {[%clk 0:00:49]} 42. Qxb5 {[%clk 0:02:06.9]} 42... Qc2+ {[%clk
0:00:46.8]} 43. Kf3 {[%clk 0:02:03.1]} 43... Qb3+ {[%clk 0:00:40.1]} 44. Kf4
{[%clk 0:01:57.8]} 44... Qxa3 {[%clk 0:00:34.1]} 45. Qe5+ {[%clk 0:01:52.7]}
45... Kf7 {[%clk 0:00:30.6]} 46. Qc7+ {[%clk 0:01:50.2]} 46... Ke6 {[%clk
0:00:22.7]} 47. Qxh7 {[%clk 0:01:28.9]} 47... Qc1+ {[%clk 0:00:16.2]} 48. Kg4
{[%clk 0:01:27.2]} 48... Qd1+ {[%clk 0:00:11]} 49. Kh4 {[%clk 0:01:25.7]} 49...
Kf6 {[%clk 0:00:05.3]} 50. Qh6 {[%clk 0:01:13.1]} 1-0

[Event "Live Chess"]
[Site "Chess.com"]
[Date "2024.06.01"]
[Round "-"]
[White "EdenHazard8"]
[Black "KwikPhoenix"]
[Result "0-1"]
[WhiteElo "2179"]
[BlackElo "2468"]
[TimeControl "300"]
[EndTime "9:25:41 PDT"]
[Termination "KwikPhoenix won by resignation"]

1. c4 {[%clk 0:04:58.3]} 1... f5 {[%clk 0:04:56.7]} 2. d4 {[%clk 0:04:57.1]}
2... Nf6 {[%clk 0:04:56.1]} 3. Nc3 {[%clk 0:04:55.6]} 3... e6 {[%clk 0:04:55.4]}
4. Bg5 {[%clk 0:04:54.4]} 4... Be7 {[%clk 0:04:54.6]} 5. Nf3 {[%clk 0:04:53.5]}
5... d6 {[%clk 0:04:53.6]} 6. e3 {[%clk 0:04:52.6]} 6... h6 {[%clk 0:04:50.8]}
7. Bxf6 {[%clk 0:04:51.6]} 7... Bxf6 {[%clk 0:04:50.7]} 8. Bd3 {[%clk
0:04:50.8]} 8... O-O {[%clk 0:04:49.1]} 9. Qc2 {[%clk 0:04:49.8]} 9... Nc6
{[%clk 0:04:43.6]} 10. O-O-O {[%clk 0:04:48.5]} 10... Nb4 {[%clk 0:04:42.6]} 11.
Qe2 {[%clk 0:04:48.1]} 11... Nxd3+ {[%clk 0:04:41.7]} 12. Qxd3 {[%clk
0:04:47.6]} 12... c6 {[%clk 0:04:22.4]} 13. e4 {[%clk 0:04:46.1]} 13... fxe4
{[%clk 0:04:21.5]} 14. Nxe4 {[%clk 0:04:46]} 14... a5 {[%clk 0:04:06.4]} 15. c5
{[%clk 0:04:40.9]} 15... dxc5 {[%clk 0:03:37.1]} 16. Nxc5 {[%clk 0:04:38.6]}
16... Qd5 {[%clk 0:03:26]} 17. Kb1 {[%clk 0:04:31.9]} 17... b6 {[%clk
0:03:18.2]} 18. Ne4 {[%clk 0:04:26.5]} 18... Ba6 {[%clk 0:03:17.4]} 19. Nxf6+
{[%clk 0:04:24.4]} 19... Rxf6 {[%clk 0:03:16.8]} 20. Qe3 {[%clk 0:04:22.8]}
20... Raf8 {[%clk 0:03:10.5]} 21. Rhe1 {[%clk 0:04:19.5]} 21... Qf5+ {[%clk
0:03:00.2]} 22. Ka1 {[%clk 0:04:18]} 22... Qg4 {[%clk 0:02:53.2]} 23. Rc1 {[%clk
0:04:14.4]} 23... Qxg2 {[%clk 0:02:35.7]} 24. Ne5 {[%clk 0:04:12.6]} 24... Rxf2
{[%clk 0:02:20.6]} 25. Qb3 {[%clk 0:04:09]} 25... Kh8 {[%clk 0:02:06.7]} 26. Rg1
{[%clk 0:04:05.3]} 26... Qxg1 {[%clk 0:01:49]} 27. Rxg1 {[%clk 0:04:00.7]} 27...
Rf1+ {[%clk 0:01:48.5]} 28. Qd1 {[%clk 0:04:00.4]} 28... Rxd1+ {[%clk
0:01:48.3]} 29. Rxd1 {[%clk 0:03:59.3]} 29... Rc8 {[%clk 0:01:43.6]} 30. Rc1
{[%clk 0:03:52.1]} 30... c5 {[%clk 0:01:41.7]} 31. Nf7+ {[%clk 0:03:30.2]} 31...
Kg8 {[%clk 0:01:35.7]} 32. Nd6 {[%clk 0:03:25.5]} 32... Rd8 {[%clk 0:01:30.1]}
33. dxc5 {[%clk 0:03:20.3]} 33... bxc5 {[%clk 0:01:29.1]} 34. Ne4 {[%clk
0:03:19.3]} 34... c4 {[%clk 0:01:28.1]} 35. Nc5 {[%clk 0:03:16.7]} 35... Bc8
{[%clk 0:01:25.6]} 36. a3 {[%clk 0:03:08.7]} 36... Rd4 {[%clk 0:01:23.5]} 37.
Re1 {[%clk 0:02:58.4]} 37... Kf7 {[%clk 0:01:21.8]} 38. Rf1+ {[%clk 0:02:56.6]}
38... Ke7 {[%clk 0:01:18.6]} 39. Na4 {[%clk 0:02:53]} 39... Bb7 {[%clk
0:01:13.8]} 40. Nc3 {[%clk 0:02:50.3]} 40... Bd5 {[%clk 0:01:12.5]} 41. Re1
{[%clk 0:02:44.9]} 41... g5 {[%clk 0:01:10.9]} 42. Re5 {[%clk 0:02:39.4]} 42...
Kf6 {[%clk 0:01:08.6]} 43. Re1 {[%clk 0:02:36.7]} 43... Rd2 {[%clk 0:01:08.1]}
44. Ne2 {[%clk 0:02:23.4]} 44... h5 {[%clk 0:01:03.9]} 45. h4 {[%clk 0:02:20.8]}
45... gxh4 {[%clk 0:01:01.6]} 46. Nf4 {[%clk 0:02:19.5]} 46... Kf5 {[%clk
0:00:55]} 47. Nxh5 {[%clk 0:02:17.9]} 47... h3 {[%clk 0:00:54.1]} 48. Ng3+
{[%clk 0:02:14]} 48... Kg4 {[%clk 0:00:53.3]} 49. Ne2 {[%clk 0:02:12.6]} 49...
h2 {[%clk 0:00:49.4]} 0-1